[Event "Titled Tuesday Blitz June 6 Early 2023"]
[White "Georg, Heinz"]
[Black "Tokman, Ariel"]
[WhiteFideId "4607295"]
[BlackFideId "117420"]
[WhiteElo "2301"]
[BlackElo "2263"]
[Result "1-0"]
[Round "2"]
[TimeControl "180+2"]
[Date "2023.06.06"]
[WhiteClock "0:01:00"]
[BlackClock "0:00:11"]
[Board "155"]

1. e4 {[%clk 0:03:00]}  c5 {[%clk 0:02:59]} 2. Nf3 {[%clk 0:03:00]}  d6 {[%clk 0:02:58]} 3. Bb5+ {[%clk 0:03:00]}  Bd7 {[%clk 0:02:56]} 4. Bxd7+ {[%clk 0:03:00]}  Qxd7 {[%clk 0:02:57]} 5. O-O {[%clk 0:03:00]}  Nf6 {[%clk 0:02:55]} 6. Re1 {[%clk 0:02:58]}  e6 {[%clk 0:02:53]} 7. c3 {[%clk 0:02:57]}  Be7 {[%clk 0:02:48]} 8. d4 {[%clk 0:02:57]}  cxd4 {[%clk 0:02:49]} 9. cxd4 {[%clk 0:02:57]}  d5 {[%clk 0:02:48]} 10. e5 {[%clk 0:02:58]}  Ne4 {[%clk 0:02:44]} 11. Nbd2 {[%clk 0:02:58]}  Nxd2 {[%clk 0:02:42]} 12. Bxd2 {[%clk 0:02:59]}  Nc6 {[%clk 0:02:42]} 13. Rc1 {[%clk 0:02:58]}  Rc8 {[%clk 0:02:41]} 14. a3 {[%clk 0:02:58]}  O-O {[%clk 0:02:40]} 15. h4 {[%clk 0:02:56]}  a6 {[%clk 0:02:27]} 16. Qe2 {[%clk 0:02:45]}  Na7 {[%clk 0:02:25]} 17. Ba5 {[%clk 0:02:28]}  Qb5 {[%clk 0:02:21]} 18. Qxb5 {[%clk 0:02:27]}  Nxb5 {[%clk 0:02:22]} 19. Bb6 {[%clk 0:02:27]}  Rc6 {[%clk 0:01:45]} 20. Rxc6 {[%clk 0:02:11]}  bxc6 {[%clk 0:01:46]} 21. Rc1 {[%clk 0:02:10]}  Bd8 {[%clk 0:01:04]} 22. Rxc6 {[%clk 0:01:49]}  Bxb6 {[%clk 0:01:00]} 23. Rxb6 {[%clk 0:01:49]}  Ra8 {[%clk 0:00:59]} 24. a4 {[%clk 0:01:44]}  Nc7 {[%clk 0:01:00]} 25. Rb7 {[%clk 0:01:36]}  Rc8 {[%clk 0:00:50]} 26. Nd2 {[%clk 0:01:30]}  h5 {[%clk 0:00:33]} 27. Nb3 {[%clk 0:01:29]}  f6 {[%clk 0:00:30]} 28. exf6 {[%clk 0:01:07]}  gxf6 {[%clk 0:00:30]} 29. Nc5 {[%clk 0:01:07]}  e5 {[%clk 0:00:26]} 30. Nd7 {[%clk 0:01:03]}  Kf7 {[%clk 0:00:11]} 31. Nb6 {[%clk 0:01:00]} 1-0


[Site "https://www.chess.com"]

[Event "Titled Tuesday Blitz June 6 Early 2023"]
[White "Aggelis, Nikolaos"]
[Black "Baraeva, Irina"]
[WhiteFideId "4213220"]
[BlackFideId "24142565"]
[WhiteElo "2189"]
[BlackElo "2085"]
[Result "1/2-1/2"]
[Round "2"]
[TimeControl "180+2"]
[Date "2023.06.06"]
[WhiteClock "0:01:35"]
[BlackClock "0:00:58"]
[Board "156"]

1. c4 {[%clk 0:03:00]}  e5 {[%clk 0:02:59]} 2. Nc3 {[%clk 0:03:00]}  Nf6 {[%clk 0:02:59]} 3. e3 {[%clk 0:02:56]}  d5 {[%clk 0:02:58]} 4. cxd5 {[%clk 0:02:56]}  Nxd5 {[%clk 0:02:58]} 5. Nf3 {[%clk 0:02:56]}  Nc6 {[%clk 0:02:57]} 6. Bb5 {[%clk 0:02:57]}  Nxc3 {[%clk 0:02:53]} 7. bxc3 {[%clk 0:02:58]}  e4 {[%clk 0:02:52]} 8. Nd4 {[%clk 0:02:57]}  Bd7 {[%clk 0:02:52]} 9. Qa4 {[%clk 0:02:50]}  Nxd4 {[%clk 0:02:41]} 10. Bxd7+ {[%clk 0:02:49]}  Qxd7 {[%clk 0:02:41]} 11. Qxd7+ {[%clk 0:02:48]}  Kxd7 {[%clk 0:02:41]} 12. cxd4 {[%clk 0:02:47]}  f5 {[%clk 0:02:39]} 13. d3 {[%clk 0:02:47]}  Bb4+ {[%clk 0:02:34]} 14. Bd2 {[%clk 0:02:46]}  Bxd2+ {[%clk 0:02:33]} 15. Kxd2 {[%clk 0:02:47]}  exd3 {[%clk 0:02:31]} 16. Kxd3 {[%clk 0:02:48]}  c6 {[%clk 0:02:31]} 17. Rab1 {[%clk 0:02:49]}  Rab8 {[%clk 0:02:32]} 18. Rhc1 {[%clk 0:02:48]}  Rhe8 {[%clk 0:02:31]} 19. Rc5 {[%clk 0:02:48]}  g6 {[%clk 0:02:30]} 20. h3 {[%clk 0:02:37]}  b6 {[%clk 0:02:19]} 21. Rc2 {[%clk 0:02:35]}  Rbc8 {[%clk 0:02:17]} 22. g4 {[%clk 0:02:34]}  fxg4 {[%clk 0:02:05]} 23. hxg4 {[%clk 0:02:35]}  Rf8 {[%clk 0:02:05]} 24. f4 {[%clk 0:02:34]}  Rf7 {[%clk 0:02:05]} 25. g5 {[%clk 0:02:31]}  Re8 {[%clk 0:01:58]} 26. Rh1 {[%clk 0:02:31]}  Kd6 {[%clk 0:01:56]} 27. Rch2 {[%clk 0:02:22]}  Ree7 {[%clk 0:01:49]} 28. Rh4 {[%clk 0:02:20]}  Kd5 {[%clk 0:01:49]} 29. Re1 {[%clk 0:02:14]}  Re6 {[%clk 0:01:44]} 30. e4+ {[%clk 0:02:14]}  Kd6 {[%clk 0:01:44]} 31. Reh1 {[%clk 0:02:12]}  Ree7 {[%clk 0:01:38]} 32. a4 {[%clk 0:02:12]}  Rd7 {[%clk 0:01:37]} 33. Ke3 {[%clk 0:02:10]}  Rde7 {[%clk 0:01:37]} 34. Rh6 {[%clk 0:02:06]}  Kd7 {[%clk 0:01:36]} 35. R1h4 {[%clk 0:02:03]}  Kc7 {[%clk 0:01:35]} 36. Kd3 {[%clk 0:02:02]}  Kd7 {[%clk 0:01:36]} 37. Ke3 {[%clk 0:01:55]}  Kc7 {[%clk 0:01:36]} 38. Rh1 {[%clk 0:01:55]}  Kd7 {[%clk 0:01:36]} 39. R6h2 {[%clk 0:01:55]}  Kc7 {[%clk 0:01:34]} 40. a5 {[%clk 0:01:56]}  Kd6 {[%clk 0:01:32]} 41. axb6 {[%clk 0:01:52]}  axb6 {[%clk 0:01:32]} 42. Rb2 {[%clk 0:01:53]}  b5 {[%clk 0:01:31]} 43. Rc2 {[%clk 0:01:51]}  Ra7 {[%clk 0:01:30]} 44. Rhc1 {[%clk 0:01:47]}  Ra3+ {[%clk 0:01:30]} 45. Rc3 {[%clk 0:01:47]}  Rxc3+ {[%clk 0:01:29]} 46. Rxc3 {[%clk 0:01:48]}  Ra7 {[%clk 0:01:29]} 47. Rd3 {[%clk 0:01:46]}  b4 {[%clk 0:01:27]} 48. d5 {[%clk 0:01:46]}  cxd5 {[%clk 0:01:26]} 49. Rxd5+ {[%clk 0:01:45]}  Kc6 {[%clk 0:01:26]} 50. Kd4 {[%clk 0:01:43]}  b3 {[%clk 0:01:23]} 51. Kc3 {[%clk 0:01:43]}  Rb7 {[%clk 0:01:15]} 52. Kb2 {[%clk 0:01:39]}  Rb4 {[%clk 0:01:15]} 53. Re5 {[%clk 0:01:40]}  Kd6 {[%clk 0:01:14]} 54. Re8 {[%clk 0:01:39]}  Kd7 {[%clk 0:01:08]} 55. Re5 {[%clk 0:01:39]}  Kd6 {[%clk 0:00:58]} 56. Re8 {[%clk 0:01:35]}  Kd7 {[%clk 0:00:58]} 57. Re5 {[%clk 0:01:35]}  Kd6 {[%clk 0:00:58]} 1/2-1/2


[Site "https://www.chess.com"]

[Event "Titled Tuesday Blitz June 6 Early 2023"]
[White "Bashkansky, Ethan"]
[Black "Petukhov, Dmitry"]
[WhiteFideId "2071533"]
[BlackFideId "4142748"]
[WhiteElo "2298"]
[BlackElo "2311"]
[Result "0-1"]
[Round "2"]
[TimeControl "180+2"]
[Date "2023.06.06"]
[WhiteClock "0:00:04"]
[BlackClock "0:00:18"]
[Board "157"]

1. d4 {[%clk 0:03:00]}  Nf6 {[%clk 0:02:47]} 2. c4 {[%clk 0:02:59]}  g6 {[%clk 0:02:46]} 3. Nc3 {[%clk 0:02:59]}  d5 {[%clk 0:02:47]} 4. cxd5 {[%clk 0:02:58]}  Nxd5 {[%clk 0:02:48]} 5. Bd2 {[%clk 0:02:58]}  Bg7 {[%clk 0:02:47]} 6. e4 {[%clk 0:02:58]}  Nxc3 {[%clk 0:02:48]} 7. Bxc3 {[%clk 0:02:59]}  O-O {[%clk 0:02:48]} 8. Nf3 {[%clk 0:02:57]}  c5 {[%clk 0:02:49]} 9. d5 {[%clk 0:02:57]}  Bxc3+ {[%clk 0:02:50]} 10. bxc3 {[%clk 0:02:57]}  Qa5 {[%clk 0:02:47]} 11. Qd2 {[%clk 0:02:57]}  Nd7 {[%clk 0:02:40]} 12. Be2 {[%clk 0:02:54]}  Nf6 {[%clk 0:02:39]} 13. c4 {[%clk 0:02:51]}  Qxd2+ {[%clk 0:02:33]} 14. Nxd2 {[%clk 0:02:52]}  e5 {[%clk 0:02:32]} 15. O-O {[%clk 0:02:48]}  Ne8 {[%clk 0:02:32]} 16. a4 {[%clk 0:02:38]}  Nd6 {[%clk 0:02:28]} 17. a5 {[%clk 0:02:36]}  f5 {[%clk 0:02:25]} 18. exf5 {[%clk 0:02:32]}  gxf5 {[%clk 0:02:25]} 19. Nb3 {[%clk 0:02:33]}  Ne4 {[%clk 0:02:20]} 20. Bd3 {[%clk 0:02:23]}  Nd6 {[%clk 0:02:00]} 21. f3 {[%clk 0:02:04]}  e4 {[%clk 0:01:39]} 22. fxe4 {[%clk 0:02:04]}  fxe4 {[%clk 0:01:40]} 23. Rxf8+ {[%clk 0:01:59]}  Kxf8 {[%clk 0:01:41]} 24. Be2 {[%clk 0:01:59]}  Bf5 {[%clk 0:01:40]} 25. Kf2 {[%clk 0:01:38]}  Ke7 {[%clk 0:01:38]} 26. Ke3 {[%clk 0:01:39]}  Bg6 {[%clk 0:01:26]} 27. g4 {[%clk 0:01:30]}  Rc8 {[%clk 0:01:20]} 28. h4 {[%clk 0:01:27]}  h5 {[%clk 0:01:18]} 29. gxh5 {[%clk 0:01:26]}  Bh7 {[%clk 0:01:16]} 30. Rg1 {[%clk 0:01:10]}  Kf6 {[%clk 0:01:14]} 31. Nd2 {[%clk 0:00:57]}  Nf5+ {[%clk 0:01:06]} 32. Kf4 {[%clk 0:00:57]}  Nd4 {[%clk 0:01:04]} 33. Bg4 {[%clk 0:00:50]}  Re8 {[%clk 0:00:46]} 34. Re1 {[%clk 0:00:40]}  Nc2 {[%clk 0:00:43]} 35. Rb1 {[%clk 0:00:40]}  Re7 {[%clk 0:00:42]} 36. Be6 {[%clk 0:00:36]}  e3 {[%clk 0:00:41]} 37. Nf3 {[%clk 0:00:23]}  Nd4 {[%clk 0:00:41]} 38. Re1 {[%clk 0:00:17]}  Nc2 {[%clk 0:00:38]} 39. Re2 {[%clk 0:00:16]}  Bd3 {[%clk 0:00:38]} 40. Rg2 {[%clk 0:00:14]}  e2 {[%clk 0:00:35]} 41. h6 {[%clk 0:00:14]}  Rh7 {[%clk 0:00:29]} 42. Rg1 {[%clk 0:00:04]}  Rxh6 {[%clk 0:00:23]} 43. Ne1 {[%clk 0:00:04]}  Nxe1 {[%clk 0:00:21]} 44. Rxe1 {[%clk 0:00:05]}  Bxc4 {[%clk 0:00:22]} 45. Kg4 {[%clk 0:00:02]}  Rg6+ {[%clk 0:00:19]} 46. Kf4 {[%clk 0:00:03]}  Rg2 {[%clk 0:00:17]} 47. h5 {[%clk 0:00:02]}  Rf2+ {[%clk 0:00:18]} 48. Kg4 {[%clk 0:00:01]}  Rf1 {[%clk 0:00:18]} 49. Rxe2 {[%clk 0:00:01]}  Bxe2+ {[%clk 0:00:18]} 50. Kh4 {[%clk 0:00:02]}  Rh1+ {[%clk 0:00:18]} 51. Kg3 {[%clk 0:00:02]}  Rxh5 {[%clk 0:00:19]} 52. Kf4 {[%clk 0:00:03]}  Re5 {[%clk 0:00:19]} 53. Bg8 {[%clk 0:00:02]}  c4 {[%clk 0:00:18]} 54. d6 {[%clk 0:00:03]}  Re8 {[%clk 0:00:16]} 55. Bd5 {[%clk 0:00:02]}  Rd8 {[%clk 0:00:16]} 56. Bxb7 {[%clk 0:00:02]}  c3 {[%clk 0:00:16]} 57. Ke3 {[%clk 0:00:03]}  c2 {[%clk 0:00:14]} 58. Kd2 {[%clk 0:00:03]}  Bd1 {[%clk 0:00:15]} 59. Be4 {[%clk 0:00:02]}  Rxd6+ {[%clk 0:00:16]} 60. Kc1 {[%clk 0:00:02]}  Ke5 {[%clk 0:00:16]} 61. Bh7 {[%clk 0:00:02]}  Kd4 {[%clk 0:00:16]} 62. Bg6 {[%clk 0:00:02]}  Ke3 {[%clk 0:00:16]} 63. a6 {[%clk 0:00:03]}  Rb6 {[%clk 0:00:15]} 64. Bxc2 {[%clk 0:00:01]}  Bxc2 {[%clk 0:00:15]} 65. Kxc2 {[%clk 0:00:02]}  Rxa6 {[%clk 0:00:16]} 66. Kb2 {[%clk 0:00:03]}  Rc6 {[%clk 0:00:16]} 67. Ka1 {[%clk 0:00:04]}  Kd2 {[%clk 0:00:17]} 68. Ka2 {[%clk 0:00:04]}  Kc3 {[%clk 0:00:17]} 69. Kb1 {[%clk 0:00:04]}  Ra6 {[%clk 0:00:17]} 70. Kc1 {[%clk 0:00:04]}  Ra1# {[%clk 0:00:18]} 0-1


[Site "https://www.chess.com"]

[Event "Titled Tuesday Blitz June 6 Early 2023"]
[White "SereneSalmon"]
[Black "Sarkar, Justin"]
[BlackFideId "2010011"]
[WhiteElo "2502"]
[BlackElo "2151"]
[Result "0-1"]
[Round "2"]
[TimeControl "180+2"]
[Date "2023.06.06"]
[WhiteClock "0:02:24"]
[BlackClock "0:02:24"]
[Board "158"]

1. d4 {[%clk 0:03:00]}  d5 {[%clk 0:02:44]} 2. c4 {[%clk 0:03:00]}  dxc4 {[%clk 0:02:38]} 3. e4 {[%clk 0:02:59]}  b5 {[%clk 0:02:35]} 4. a4 {[%clk 0:02:56]}  c6 {[%clk 0:02:35]} 5. axb5 {[%clk 0:02:53]}  cxb5 {[%clk 0:02:35]} 6. Nc3 {[%clk 0:02:54]}  Qb6 {[%clk 0:02:35]} 7. Nd5 {[%clk 0:02:53]}  Qb7 {[%clk 0:02:34]} 8. Bf4 {[%clk 0:02:53]}  e5 {[%clk 0:02:34]} 9. Bxe5 {[%clk 0:02:50]}  Nd7 {[%clk 0:02:33]} 10. Bg3 {[%clk 0:02:49]}  Ngf6 {[%clk 0:02:31]} 11. Nc7+ {[%clk 0:02:46]}  Kd8 {[%clk 0:02:29]} 12. Nxa8 {[%clk 0:02:45]}  Bb4+ {[%clk 0:02:25]} 13. Qd2 {[%clk 0:02:24]}  Bxd2+ {[%clk 0:02:24]} 14. Kxd2 {[%clk 0:02:24]}  Nxe4+ {[%clk 0:02:24]} 0-1


[Site "https://www.chess.com"]

[Event "Titled Tuesday Blitz June 6 Early 2023"]
[White "Urbina Perez, Juan Antonio"]
[Black "Rodriguez Santiago, Jaime"]
[WhiteFideId "2217368"]
[BlackFideId "3100898"]
[WhiteElo "2197"]
[BlackElo "2025"]
[Result "0-1"]
[Round "2"]
[TimeControl "180+2"]
[Date "2023.06.06"]
[WhiteClock "0:02:02"]
[BlackClock "0:00:19"]
[Board "160"]

1. e4 {[%clk 0:02:56]}  c6 {[%clk 0:02:57]} 2. Nf3 {[%clk 0:02:54]}  d5 {[%clk 0:02:57]} 3. d3 {[%clk 0:02:54]}  dxe4 {[%clk 0:02:56]} 4. dxe4 {[%clk 0:02:55]}  Qxd1+ {[%clk 0:02:56]} 5. Kxd1 {[%clk 0:02:56]}  Bg4 {[%clk 0:02:55]} 6. Be2 {[%clk 0:02:57]}  Nd7 {[%clk 0:02:54]} 7. Be3 {[%clk 0:02:56]}  Ngf6 {[%clk 0:02:48]} 8. Nfd2 {[%clk 0:02:56]}  Bxe2+ {[%clk 0:02:47]} 9. Kxe2 {[%clk 0:02:57]}  e6 {[%clk 0:02:46]} 10. f3 {[%clk 0:02:55]}  Bc5 {[%clk 0:02:43]} 11. Nb3 {[%clk 0:02:53]}  Bxe3 {[%clk 0:02:41]} 12. Kxe3 {[%clk 0:02:54]}  Ke7 {[%clk 0:02:38]} 13. N1d2 {[%clk 0:02:53]}  Rhd8 {[%clk 0:02:37]} 14. Rhd1 {[%clk 0:02:53]}  Nb6 {[%clk 0:02:23]} 15. Na5 {[%clk 0:02:49]}  Rab8 {[%clk 0:02:16]} 16. Ndc4 {[%clk 0:02:49]}  Nxc4+ {[%clk 0:02:06]} 17. Nxc4 {[%clk 0:02:49]}  b6 {[%clk 0:02:05]} 18. Ne5 {[%clk 0:02:45]}  Rdc8 {[%clk 0:01:52]} 19. g4 {[%clk 0:02:41]}  Rb7 {[%clk 0:01:46]} 20. Rd2 {[%clk 0:02:39]}  Nd7 {[%clk 0:01:41]} 21. Nc4 {[%clk 0:02:38]}  Rbc7 {[%clk 0:01:24]} 22. Rad1 {[%clk 0:02:34]}  Nb8 {[%clk 0:01:07]} 23. Nd6 {[%clk 0:02:28]}  Rf8 {[%clk 0:01:05]} 24. Nc4 {[%clk 0:02:22]}  Rd7 {[%clk 0:01:03]} 25. Ne5 {[%clk 0:02:15]}  Rxd2 {[%clk 0:00:59]} 26. Rxd2 {[%clk 0:02:16]}  f6 {[%clk 0:00:56]} 27. Nd3 {[%clk 0:02:12]}  Rd8 {[%clk 0:00:55]} 28. Nf4 {[%clk 0:02:13]}  e5 {[%clk 0:00:46]} 29. Rxd8 {[%clk 0:02:10]}  exf4+ {[%clk 0:00:45]} 30. Kxf4 {[%clk 0:02:10]}  Kxd8 {[%clk 0:00:45]} 31. h4 {[%clk 0:02:10]}  Ke7 {[%clk 0:00:45]} 32. g5 {[%clk 0:02:10]}  Nd7 {[%clk 0:00:44]} 33. gxf6+ {[%clk 0:02:09]}  Nxf6 {[%clk 0:00:44]} 34. Kg5 {[%clk 0:02:08]}  Ke6 {[%clk 0:00:43]} 35. h5 {[%clk 0:02:07]}  c5 {[%clk 0:00:42]} 36. h6 {[%clk 0:02:05]}  gxh6+ {[%clk 0:00:42]} 37. Kxh6 {[%clk 0:02:06]}  Ke5 {[%clk 0:00:42]} 38. Kg5 {[%clk 0:02:02]}  h5 {[%clk 0:00:29]} 39. Kh4 {[%clk 0:01:58]}  Kf4 {[%clk 0:00:26]} 40. c3 {[%clk 0:01:56]}  b5 {[%clk 0:00:23]} 41. b3 {[%clk 0:01:52]}  a5 {[%clk 0:00:23]} 42. c4 {[%clk 0:01:46]}  b4 {[%clk 0:00:22]} 43. Kh3 {[%clk 0:01:45]}  Kxf3 {[%clk 0:00:21]} 44. e5 {[%clk 0:01:45]}  Ne8 {[%clk 0:00:19]} 45. e6 {[%clk 0:01:44]}  Ke4 {[%clk 0:00:19]} 46. Kh4 {[%clk 0:01:44]}  Ke5 {[%clk 0:00:20]} 47. Kxh5 {[%clk 0:01:45]}  Kxe6 {[%clk 0:00:21]} 48. Kg4 {[%clk 0:01:46]}  Ke5 {[%clk 0:00:21]} 49. Kf3 {[%clk 0:01:47]}  Kd4 {[%clk 0:00:21]} 50. Ke2 {[%clk 0:01:47]}  Kc3 {[%clk 0:00:21]} 51. Kd1 {[%clk 0:01:48]}  Kb2 {[%clk 0:00:21]} 52. Kd2 {[%clk 0:01:49]}  Kxa2 {[%clk 0:00:22]} 53. Kc2 {[%clk 0:01:50]}  Nd6 {[%clk 0:00:20]} 54. Kc1 {[%clk 0:01:50]}  Kxb3 {[%clk 0:00:20]} 55. Kb1 {[%clk 0:01:51]}  Kxc4 {[%clk 0:00:21]} 56. Ka1 {[%clk 0:01:52]}  a4 {[%clk 0:00:22]} 57. Kb1 {[%clk 0:01:53]}  Kb3 {[%clk 0:00:21]} 58. Ka1 {[%clk 0:01:54]}  c4 {[%clk 0:00:21]} 59. Kb1 {[%clk 0:01:55]}  Kc3 {[%clk 0:00:19]} 60. Ka1 {[%clk 0:01:56]}  Kd3 {[%clk 0:00:19]} 61. Kb1 {[%clk 0:01:56]}  c3 {[%clk 0:00:18]} 62. Ka1 {[%clk 0:01:57]}  b3 {[%clk 0:00:18]} 63. Kb1 {[%clk 0:01:58]}  a3 {[%clk 0:00:17]} 64. Ka1 {[%clk 0:01:59]}  b2+ {[%clk 0:00:16]} 65. Kb1 {[%clk 0:02:00]}  c2+ {[%clk 0:00:17]} 66. Ka2 {[%clk 0:02:01]}  b1=Q+ {[%clk 0:00:17]} 67. Kxa3 {[%clk 0:02:01]}  c1=Q+ {[%clk 0:00:18]} 68. Ka4 {[%clk 0:02:02]}  Qc4+ {[%clk 0:00:18]} 69. Ka5 {[%clk 0:02:02]}  Qcb5# {[%clk 0:00:19]} 0-1


[Site "https://www.chess.com"]

[Event "Titled Tuesday Blitz June 6 Early 2023"]
[White "Jiganchine, Roman"]
[Black "Sokolov, Andrei"]
[WhiteFideId "2603667"]
[BlackFideId "11600306"]
[WhiteElo "2287"]
[BlackElo "2473"]
[Result "1-0"]
[Round "2"]
[TimeControl "180+2"]
[Date "2023.06.06"]
[WhiteClock "0:00:23"]
[BlackClock "0:01:51"]
[Board "161"]

1. e4 {[%clk 0:02:58]}  c5 {[%clk 0:02:56]} 2. Nf3 {[%clk 0:02:58]}  Nc6 {[%clk 0:02:56]} 3. Bb5 {[%clk 0:02:56]}  g6 {[%clk 0:02:55]} 4. O-O {[%clk 0:02:55]}  Bg7 {[%clk 0:02:54]} 5. Re1 {[%clk 0:02:55]}  e6 {[%clk 0:02:48]} 6. Bxc6 {[%clk 0:02:43]}  bxc6 {[%clk 0:02:47]} 7. e5 {[%clk 0:02:43]}  Ne7 {[%clk 0:02:47]} 8. d3 {[%clk 0:02:39]}  O-O {[%clk 0:02:47]} 9. Nc3 {[%clk 0:02:36]}  Nd5 {[%clk 0:02:44]} 10. Ne4 {[%clk 0:02:25]}  Qb6 {[%clk 0:02:39]} 11. a3 {[%clk 0:02:15]}  Ba6 {[%clk 0:02:38]} 12. c4 {[%clk 0:02:14]}  Nc7 {[%clk 0:02:35]} 13. Rb1 {[%clk 0:02:02]}  Rad8 {[%clk 0:02:34]} 14. Be3 {[%clk 0:01:58]}  Qb8 {[%clk 0:02:31]} 15. Bxc5 {[%clk 0:01:54]}  Rfe8 {[%clk 0:02:23]} 16. Nd6 {[%clk 0:01:53]}  Na8 {[%clk 0:02:20]} 17. Nxe8 {[%clk 0:01:35]}  Rxe8 {[%clk 0:02:20]} 18. Bd6 {[%clk 0:01:32]}  Qb6 {[%clk 0:02:19]} 19. Qd2 {[%clk 0:01:17]}  c5 {[%clk 0:02:19]} 20. Ng5 {[%clk 0:01:13]}  h6 {[%clk 0:02:18]} 21. Ne4 {[%clk 0:01:12]}  Nc7 {[%clk 0:02:16]} 22. Bxc5 {[%clk 0:01:09]}  Qb8 {[%clk 0:02:16]} 23. Bd6 {[%clk 0:01:09]}  Qb7 {[%clk 0:02:15]} 24. Qf4 {[%clk 0:01:07]}  Qc8 {[%clk 0:02:12]} 25. Nf6+ {[%clk 0:01:06]}  Bxf6 {[%clk 0:02:11]} 26. Qxf6 {[%clk 0:01:03]}  Rf8 {[%clk 0:02:08]} 27. Re3 {[%clk 0:00:56]}  Kh7 {[%clk 0:02:07]} 28. Rh3 {[%clk 0:00:51]}  Ne8 {[%clk 0:02:04]} 29. Qh4 {[%clk 0:00:50]}  h5 {[%clk 0:02:03]} 30. Bxf8 {[%clk 0:00:49]}  Ng7 {[%clk 0:02:01]} 31. Bxg7 {[%clk 0:00:48]}  Kxg7 {[%clk 0:02:01]} 32. Qf6+ {[%clk 0:00:49]}  Kg8 {[%clk 0:02:01]} 33. Rf3 {[%clk 0:00:43]}  Qe8 {[%clk 0:02:00]} 34. Rd1 {[%clk 0:00:30]}  Bb7 {[%clk 0:01:59]} 35. Rf4 {[%clk 0:00:30]}  d5 {[%clk 0:01:57]} 36. cxd5 {[%clk 0:00:29]}  exd5 {[%clk 0:01:57]} 37. e6 {[%clk 0:00:28]}  fxe6 {[%clk 0:01:56]} 38. Re1 {[%clk 0:00:27]}  d4 {[%clk 0:01:56]} 39. Rxe6 {[%clk 0:00:24]}  Qa4 {[%clk 0:01:52]} 40. Qxg6+ {[%clk 0:00:23]}  Kh8 {[%clk 0:01:52]} 41. Qh6+ {[%clk 0:00:23]}  Kg8 {[%clk 0:01:51]} 42. Rg6# {[%clk 0:00:23]} 1-0


[Site "https://www.chess.com"]

[Event "Titled Tuesday Blitz June 6 Early 2023"]
[White "Bas Mas, Jose Joaquin"]
[Black "Napoli, Nicolo"]
[WhiteFideId "22219064"]
[BlackFideId "813702"]
[WhiteElo "2212"]
[BlackElo "2308"]
[Result "1/2-1/2"]
[Round "2"]
[TimeControl "180+2"]
[Date "2023.06.06"]
[WhiteClock "0:00:30"]
[BlackClock "0:00:11"]
[Board "163"]

1. d4 {[%clk 0:03:00]}  d5 {[%clk 0:02:59]} 2. Nc3 {[%clk 0:03:01]}  Nf6 {[%clk 0:02:56]} 3. Bf4 {[%clk 0:03:01]}  e6 {[%clk 0:02:56]} 4. Nb5 {[%clk 0:03:01]}  Na6 {[%clk 0:02:53]} 5. e3 {[%clk 0:03:01]}  c6 {[%clk 0:02:48]} 6. Nc3 {[%clk 0:03:01]}  Nc7 {[%clk 0:02:47]} 7. Nf3 {[%clk 0:03:00]}  Nh5 {[%clk 0:02:43]} 8. Bg5 {[%clk 0:02:55]}  f6 {[%clk 0:02:43]} 9. Bh4 {[%clk 0:02:52]}  g6 {[%clk 0:02:43]} 10. Bd3 {[%clk 0:02:48]}  Be7 {[%clk 0:02:41]} 11. g4 {[%clk 0:02:42]}  Ng7 {[%clk 0:02:40]} 12. Qe2 {[%clk 0:02:38]}  O-O {[%clk 0:02:40]} 13. O-O-O {[%clk 0:02:37]}  e5 {[%clk 0:02:37]} 14. dxe5 {[%clk 0:02:23]}  fxe5 {[%clk 0:02:38]} 15. Bxe7 {[%clk 0:02:20]}  Qxe7 {[%clk 0:02:39]} 16. Nd2 {[%clk 0:01:42]}  e4 {[%clk 0:02:38]} 17. Ndxe4 {[%clk 0:01:40]}  dxe4 {[%clk 0:02:38]} 18. Nxe4 {[%clk 0:01:36]}  Nd5 {[%clk 0:02:32]} 19. a3 {[%clk 0:01:27]}  Nf6 {[%clk 0:02:24]} 20. Nxf6+ {[%clk 0:01:23]}  Qxf6 {[%clk 0:02:17]} 21. f4 {[%clk 0:01:24]}  Qe7 {[%clk 0:02:08]} 22. h4 {[%clk 0:01:20]}  Be6 {[%clk 0:01:59]} 23. f5 {[%clk 0:01:18]}  gxf5 {[%clk 0:01:58]} 24. gxf5 {[%clk 0:01:18]}  Bxf5 {[%clk 0:01:58]} 25. Bc4+ {[%clk 0:01:18]}  Be6 {[%clk 0:01:57]} 26. Rhg1 {[%clk 0:01:18]}  Bxc4 {[%clk 0:01:55]} 27. Qxc4+ {[%clk 0:01:18]}  Qf7 {[%clk 0:01:56]} 28. Qg4 {[%clk 0:01:10]}  Qg6 {[%clk 0:01:50]} 29. Qxg6 {[%clk 0:01:06]}  hxg6 {[%clk 0:01:50]} 30. Rxg6 {[%clk 0:01:06]}  Kh7 {[%clk 0:01:45]} 31. Rgg1 {[%clk 0:01:05]}  Rad8 {[%clk 0:01:44]} 32. Rd4 {[%clk 0:01:02]}  Rxd4 {[%clk 0:01:40]} 33. exd4 {[%clk 0:01:03]}  Rf4 {[%clk 0:01:32]} 34. c3 {[%clk 0:01:02]}  Rxh4 {[%clk 0:01:32]} 35. Re1 {[%clk 0:01:02]}  Nf5 {[%clk 0:01:28]} 36. Re8 {[%clk 0:01:02]}  Rg4 {[%clk 0:01:25]} 37. Rf8 {[%clk 0:01:02]}  Kg6 {[%clk 0:01:22]} 38. Rb8 {[%clk 0:00:57]}  Rg1+ {[%clk 0:00:54]} 39. Kc2 {[%clk 0:00:54]}  Nd6 {[%clk 0:00:47]} 40. Kb3 {[%clk 0:00:54]}  Kf5 {[%clk 0:00:44]} 41. c4 {[%clk 0:00:46]}  Rg3+ {[%clk 0:00:37]} 42. Kb4 {[%clk 0:00:46]}  a5+ {[%clk 0:00:36]} 43. Kc5 {[%clk 0:00:38]}  Ne4+ {[%clk 0:00:30]} 44. Kb6 {[%clk 0:00:38]}  Rb3+ {[%clk 0:00:25]} 45. Kc7 {[%clk 0:00:36]}  b5 {[%clk 0:00:23]} 46. Kxc6 {[%clk 0:00:35]}  bxc4 {[%clk 0:00:20]} 47. Rxb3 {[%clk 0:00:34]}  cxb3 {[%clk 0:00:21]} 48. Kb5 {[%clk 0:00:35]}  Nd2 {[%clk 0:00:15]} 49. Kxa5 {[%clk 0:00:35]}  Ke4 {[%clk 0:00:11]} 50. Kb4 {[%clk 0:00:35]}  Kxd4 {[%clk 0:00:11]} 51. a4 {[%clk 0:00:35]}  Kd5 {[%clk 0:00:12]} 52. Kc3 {[%clk 0:00:34]}  Ne4+ {[%clk 0:00:09]} 53. Kxb3 {[%clk 0:00:34]}  Nc5+ {[%clk 0:00:09]} 54. Ka3 {[%clk 0:00:34]}  Nb7 {[%clk 0:00:10]} 55. Kb4 {[%clk 0:00:33]}  Kc6 {[%clk 0:00:10]} 56. a5 {[%clk 0:00:32]}  Nd6 {[%clk 0:00:08]} 57. Ka4 {[%clk 0:00:30]}  Kb7 {[%clk 0:00:08]} 58. b4 {[%clk 0:00:30]}  Nc4 {[%clk 0:00:08]} 59. b5 {[%clk 0:00:28]}  Nd6 {[%clk 0:00:08]} 60. Kb4 {[%clk 0:00:28]}  Nxb5 {[%clk 0:00:08]} 61. Kxb5 {[%clk 0:00:28]}  Ka7 {[%clk 0:00:09]} 62. Kc6 {[%clk 0:00:29]}  Ka8 {[%clk 0:00:10]} 63. Kb6 {[%clk 0:00:29]}  Kb8 {[%clk 0:00:10]} 64. a6 {[%clk 0:00:29]}  Ka8 {[%clk 0:00:11]} 65. a7 {[%clk 0:00:30]} 1/2-1/2


[Site "https://www.chess.com"]